fUST/lending_fUST_20250412
["ID","MTS","AMOUNT","RATE_DAILY","PERIOD"]
[357747470,1744425038629,-500.0,0.000239,2]
[357747918,1744425043452,-684.27758468,0.000239,2]
[357748192,1744425046577,-185.62627567,0.000218,2]
[357748194,1744425046587,-2109.55121535,0.000239,2]
[357748196,1744425046597,-402.88171795,0.000239,3]
[357748198,1744425046607,-1712.74607219,0.000239,2]
[357748472,1744425255641,817.742,0.00027,30]
[357748543,1744426232619,-161.43604087,0.000222,2]
[357748544,1744426232629,-170.5680548,0.00022726,2]
[357748545,1744426232639,-208.0340721,0.00022749,2]
[357748546,1744426232649,-612.18128592,0.0002348,2]
[357748547,1744426232658,-612.18128592,0.00023535,2]
[357748548,1744426232668,-612.18128592,0.0002359,2]
[357748549,1744426232679,-612.18128592,0.00023645,2]
[357748550,1744426232689,-300.0,0.00023699,2]
[357748551,1744426232699,-250.0,0.000237,2]
[357748553,1744426232710,-208.60477832,0.000237,2]
[357748555,1744426232720,-1227.89799426,0.000237,2]
[357748557,1744426232730,-612.18128592,0.000237,2]
[357748559,1744426232740,-208.60477832,0.0002375,2]
[357748560,1744426232750,-500.0,0.00023773,2]
[357748562,1744426232760,-500.0,0.00023773,2]
[357748563,1744426232769,-500.0,0.00023773,2]
[357748564,1744426232779,-357.96,0.0002379,3]
[357748565,1744426232789,-421.83398135,0.00023799,2]
[357748567,1744426232798,-180.71751803,0.00023799,2]
[357748569,1744426232808,-32027.38796162,0.000238,2]
[357748570,1744426233135,-541.51473491,0.000238,2]
[357748599,1744426238808,-704.95132021,0.000238,2]
[357749396,1744426246730,-14756.33926152,0.000238,2]
[357749398,1744426246741,-1016.58794082,0.000238,3]
[357749400,1744426246751,-21212.87860827,0.000238,2]
[357749403,1744426246767,-3531.36974868,0.000238,2]
[357752723,1744427431889,-7561.5811052,0.00022651,2]
[357752725,1744427431899,-300.0,0.00022699,2]
[357752727,1744427431909,-4734.4135478,0.000227,2]
[357752729,1744427431919,-208.5674154,0.0002287,2]
[357752732,1744427431930,-200.6932172,0.00023,2]
[357752734,1744427431939,-1000.0,0.000235,2]
[357752736,1744427431949,-1074.41074503,0.000236,2]
[357752738,1744427431958,-208.60477832,0.000236,2]
[357752740,1744427431967,-419.80094169,0.00023657,2]
[357752742,1744427431976,-500.0,0.00023673,2]
[357752744,1744427431986,-501.6832447,0.00023673,2]
[357752746,1744427431995,-500.0,0.00023673,2]
[357752748,1744427432005,-500.0,0.00023673,2]
[357752750,1744427432014,-500.0,0.00023673,2]
[357752752,1744427432023,-500.0,0.00023673,2]
[357752754,1744427432032,-269.29707873,0.00023673,2]
[357752791,1744427432365,-230.70292127,0.00023673,2]
[357752793,1744427432376,-500.0,0.00023673,2]
[357752795,1744427432385,-37.63571642,0.00023673,2]
[357752798,1744427432397,-473.90382854,0.00023673,2]
[357752800,1744427432407,-500.0,0.00023673,2]
[357752802,1744427432417,-500.0,0.00023673,2]
[357752804,1744427432427,-500.0,0.00023673,2]
[357752806,1744427432436,-500.0,0.00023673,2]
[357752808,1744427432445,-500.0,0.00023673,2]
[357752810,1744427432454,-180.14166173,0.00023673,2]
[357753299,1744427437999,-319.85833827,0.00023673,2]
[357753301,1744427438010,-500.0,0.00023673,2]
[357753323,1744427438021,-500.0,0.00023673,2]
[357753325,1744427438258,-500.0,0.00023673,2]
[357753326,1744427438269,-500.0,0.00023673,2]
[357753327,1744427438279,-505.18802825,0.00023673,2]
[357753328,1744427438289,-500.0,0.00023673,2]
[357753329,1744427438299,-500.0,0.00023673,2]
[357753330,1744427438310,-506.89444511,0.00023673,2]
[357753331,1744427438320,-500.0,0.00023673,2]
[357753332,1744427438330,-500.0,0.00023673,2]
[357753333,1744427438340,-226.13493208,0.00023673,2]
[357753334,1744427438349,-500.0,0.00023673,2]
[357753335,1744427438359,-500.0,0.00023673,2]
[357753336,1744427438369,-501.54552968,0.00023673,2]
[357753337,1744427438379,-500.0,0.00023673,2]
[357753338,1744427438388,-547.25314446,0.00023699,2]
[357753339,1744427438399,-297.7388577,0.00023699,2]
[357753340,1744427438409,-387.80473509,0.00023699,2]
[357753341,1744427438419,-250.0,0.000237,2]
[357753342,1744427438429,-24015.09663913,0.000237,2]
[357753343,1744427438439,-508.29397041,0.000237,3]
[357753344,1744427438455,-496.94747145,0.000237,2]
[357753345,1744427438465,-127568.93321189,0.000237,2]
[357753346,1744427438478,-783.01850417,0.000237,2]
[357753347,1744427438491,-2701.78277355,0.000237,2]
[357753348,1744427438503,-2122.26064756,0.000237,2]
[357753497,1744427440081,-1013.9836,0.000237,2]
[357753504,1744427440136,-4264.73560983,0.000237,2]
[357753506,1744427440151,-827.41,0.000237,2]
[357753509,1744427440163,-331.0,0.000237,2]
[357753650,1744427443109,-522.43297738,0.000237,2]
[357753652,1744427443121,-23127.56853634,0.000237,2]
[357753654,1744427443132,-4549.99999025,0.000237,2]
[357753656,1744427443144,-3040.37832181,0.000237,2]
[357753659,1744427443155,-545.24708926,0.000237,2]
[357753661,1744427443167,-9001.82243579,0.000237,2]
[357753663,1744427443178,-2954.79151319,0.000237,2]
[357753665,1744427443190,-550.73773191,0.000237,2]
[357753941,1744427445885,-23381.1912778,0.000237,2]
[357753944,1744427445897,-5722.2042792,0.000237,2]
[357753946,1744427445909,-7375.21789812,0.000237,2]
[357753950,1744427445938,-12502.84997674,0.000237,2]
[357753952,1744427445948,-213.3779527,0.000237,2]
[357753954,1744427445958,-564.7737806,0.000237,2]
[357753956,1744427445968,-564.7737806,0.000237,2]
[357753958,1744427445979,-564.7737806,0.000237,2]
[357753960,1744427445988,-564.7737806,0.000237,2]
[357753962,1744427445998,-964.0,0.000238,2]
[357753964,1744427446008,-679.066903,0.000238,2]
[357753966,1744427446018,-162.2472246,0.000238,2]
[357753968,1744427446028,-308.6271099,0.000238,2]
[357753971,1744427446037,-313.3899114,0.000238,2]
[357753973,1744427446048,-213.0249801,0.000238,2]
[357753975,1744427446057,-166.0,0.000238,3]
[357753977,1744427446066,-159.0,0.000238,3]
[357753979,1744427446076,-159.0,0.000238,3]
[357753981,1744427446086,-159.0,0.000238,3]
[357753983,1744427446095,-159.17091011,0.000238,3]
[357753985,1744427446105,-358.0,0.000238,3]
[357753987,1744427446115,-318.0,0.000238,3]
[357753989,1744427446125,-318.0,0.000238,3]
[357753991,1744427446134,-421.70342401,0.000238,3]
[357753993,1744427446143,-358.0,0.000238,3]
[357753995,1744427446153,-192.88474614,0.000238,3]
[357753997,1744427446165,-125.11525386,0.000238,3]
[357754000,1744427446178,-256.81293067,0.000238,3]
[357754002,1744427446190,-101.18706933,0.000238,3]
[357754004,1744427446200,-318.0,0.000238,3]
[357754006,1744427446209,-358.0,0.000238,3]
[357754008,1744427446219,-318.0,0.000238,3]
[357754010,1744427446228,-342.00497026,0.000238,3]
[357754012,1744427446237,-318.0,0.000238,3]
[357754014,1744427446247,-318.0,0.000238,3]
[357754016,1744427446256,-318.0,0.000238,3]
[357754018,1744427446266,-318.0,0.000238,3]
[357754020,1744427446276,-151.0,0.000238,7]
[357754022,1744427446286,-151.0,0.000238,7]
[357754024,1744427446295,-151.0,0.000238,7]
[357754026,1744427446305,-151.0,0.000238,7]
[357754028,1744427446315,-151.0,0.000238,7]
[357754030,1744427446325,-160.0,0.000238,3]
[357754032,1744427446336,-151.0,0.000238,7]
[357754035,1744427446346,-169.0,0.000238,3]
[357754037,1744427446355,-299.90598753,0.000238,3]
[357754039,1744427446365,-159.0,0.000238,3]
[357754041,1744427446375,-159.0,0.000238,3]
[357754043,1744427446384,-159.0,0.000238,3]
[357754045,1744427446394,-159.0,0.000238,3]
[357754047,1744427446403,-358.0,0.000238,3]
[357754049,1744427446413,-358.0,0.000238,3]
[357754051,1744427446422,-159.53312179,0.000238,3]
[357754053,1744427446432,-358.0,0.000238,3]
[357754055,1744427446442,-358.0,0.000238,3]
[357754057,1744427446452,-358.0,0.000238,3]
[357754059,1744427446462,-318.0,0.000238,3]
[357754061,1744427446471,-358.0,0.000238,3]
[357754063,1744427446481,-318.0,0.000238,3]
[357754065,1744427446492,-358.0,0.000238,3]
[357754067,1744427446501,-318.0,0.000238,3]
[357754087,1744427446678,-318.0,0.000238,3]
[357754089,1744427446689,-366.669653,0.000239,2]
[357754091,1744427446699,-360.3165844,0.000239,2]
[357754093,1744427446709,-156.091953,0.000239,7]
[357754096,1744427446718,-151.0,0.000239,7]
[357754098,1744427446728,-151.0,0.000239,7]
[357754100,1744427446738,-151.0,0.000239,7]
[357754102,1744427446747,-534.95214,0.000239,7]
[357754104,1744427446757,-534.95214,0.000239,7]
[357754106,1744427446767,-500.0,0.00023973,2]
[357754108,1744427446776,-500.0,0.00023973,2]
[357754110,1744427446786,-499.99780207,0.00023973,2]
[357754112,1744427446795,-500.0,0.00023973,2]
[357754114,1744427446806,-501.34467777,0.00023973,2]
[357754116,1744427446817,-503.88885921,0.00023973,2]
[357754118,1744427446826,-503.04759523,0.00023973,2]
[357754120,1744427446836,-261.38122153,0.00023973,2]
[357754122,1744427446846,-500.0,0.00023973,2]
[357754124,1744427446855,-501.94717653,0.00023973,2]
[357754126,1744427446865,-500.0,0.00023973,2]
[357754129,1744427446875,-399.23101252,0.00023973,2]
[357757026,1744428524990,129941.99551933,0.00026,30]
[357757028,1744428553450,158.522483,0.000266,31]
[357757075,1744428631869,-250.0,0.000226,2]
[357757077,1744428631879,-174.686323,0.00022693,2]
[357757080,1744428631889,-857.0,0.00023,2]
[357757082,1744428631898,-2225.0,0.00023,2]
[357757084,1744428631908,-300.0,0.00023375,2]
[357757086,1744428631918,-8000.0,0.00023376,2]
[357757088,1744428631928,-838.16197378,0.00023377,2]
[357757090,1744428631943,-160.0,0.00023377,2]
[357757092,1744428631954,-160.0,0.00023377,2]
[357757094,1744428631963,-160.0,0.00023377,2]
[357757096,1744428631973,-200.0,0.0002343,2]
[357757099,1744428631983,-206.45051582,0.00023471,2]
[357757101,1744428631993,-940.10940191,0.00023472,2]
[357757104,1744428632009,-1303.16562621,0.00023472,2]
[357757106,1744428632019,-206.45051581,0.000235,2]
[357757108,1744428632030,-173.71,0.00023561,3]
[357757110,1744428632040,-521.16,0.00023561,3]
[357757112,1744428632050,-1012.6844271,0.00023571,2]
[357757114,1744428632060,-500.0,0.00023571,2]
[357757116,1744428632069,-501.67731515,0.00023571,2]
[357757117,1744428632080,-1012.6844271,0.00023571,2]
[357757118,1744428632090,-639.99999999,0.00023571,2]
[357757120,1744428632100,-1012.6844271,0.00023571,2]
[357757122,1744428632111,-500.0,0.00023571,2]
[357757124,1744428632121,-1012.6844271,0.00023571,2]
[357757126,1744428632132,-1012.6844271,0.00023571,2]
[357757128,1744428632144,-1012.6844271,0.00023571,2]
[357757129,1744428632155,-1012.6844271,0.00023571,2]
[357757131,1744428632166,-1012.6844271,0.00023571,2]
[357757133,1744428632176,-430.06953017,0.00023571,2]
[357757134,1744428632186,-1012.6844271,0.00023571,2]
[357757135,1744428632197,-1012.6844271,0.00023571,2]
[357757136,1744428632207,-1012.6844271,0.00023571,2]
[357757137,1744428632217,-1012.6844271,0.00023571,2]
[357757138,1744428632227,-1012.6844271,0.00023571,2]
[357757139,1744428632238,-1012.6844271,0.00023571,2]
[357757140,1744428632247,-1012.6844271,0.00023571,2]
[357757141,1744428632257,-1012.6844271,0.00023571,2]
[357757142,1744428632268,-1012.6844271,0.00023571,2]
[357757143,1744428632278,-1012.6844271,0.00023571,2]
[357757144,1744428632288,-1012.6844271,0.00023571,2]
[357757145,1744428632298,-1012.6844271,0.00023571,2]
[357757146,1744428632308,-1012.6844271,0.00023571,2]
[357757147,1744428632318,-1012.6844271,0.00023571,2]
[357757148,1744428632329,-1012.6844271,0.00023571,2]
[357757149,1744428632339,-1012.6844271,0.00023571,2]
[357757150,1744428632349,-1012.6844271,0.00023571,2]
[357757151,1744428632359,-1012.6844271,0.00023571,2]
[357757152,1744428632370,-1012.6844271,0.00023571,2]
[357757153,1744428632380,-1012.6844271,0.00023571,2]
[357757154,1744428632390,-1012.6844271,0.00023571,2]
[357757155,1744428632400,-1012.6844271,0.00023571,2]
[357757156,1744428632411,-1012.6844271,0.00023571,2]
[357757157,1744428632421,-1012.6844271,0.00023571,2]
[357757158,1744428632432,-1012.6844271,0.00023571,2]
[357757159,1744428632442,-1012.6844271,0.00023571,2]
[357757160,1744428632452,-1012.6844271,0.00023571,2]
[357757161,1744428632462,-1012.6844271,0.00023571,2]
[357757162,1744428632473,-1012.6844271,0.00023571,2]
[357757163,1744428632483,-1012.6844271,0.00023571,2]
[357757164,1744428632493,-1012.6844271,0.00023571,2]
[357757165,1744428632503,-1012.6844271,0.00023571,2]
[357757166,1744428632514,-1012.6844271,0.00023571,2]
[357757167,1744428632524,-1012.6844271,0.00023571,2]
[357757168,1744428632534,-1012.6844271,0.00023571,2]
[357757169,1744428632545,-1012.6844271,0.00023571,2]
[357757170,1744428632555,-1012.6844271,0.00023571,2]
[357757171,1744428632566,-1012.6844271,0.00023571,2]
[357757172,1744428632576,-1012.6844271,0.00023571,2]
[357757173,1744428632587,-1012.6844271,0.00023571,2]
[357757174,1744428632597,-1012.6844271,0.00023571,2]
[357757175,1744428632608,-1012.6844271,0.00023571,2]
[357757176,1744428632621,-1012.6844271,0.00023571,2]
[357757177,1744428632632,-1012.6844271,0.00023571,2]
[357757178,1744428632642,-1012.6844271,0.00023571,2]
[357757179,1744428632652,-1012.6844271,0.00023571,2]
[357757180,1744428632663,-1012.6844271,0.00023571,2]
[357757181,1744428632673,-1012.6844271,0.00023571,2]
[357757182,1744428632683,-1012.6844271,0.00023571,2]
[357757183,1744428632694,-1012.6844271,0.00023571,2]
[357757184,1744428632704,-1012.6844271,0.00023571,2]
[357757185,1744428632715,-1012.6844271,0.00023571,2]
[357757186,1744428632726,-1012.6844271,0.00023571,2]
[357757187,1744428632738,-1012.6844271,0.00023571,2]
[357757188,1744428632748,-1012.6844271,0.00023571,2]
[357757189,1744428632759,-1012.6844271,0.00023571,2]
[357757190,1744428632769,-2296.87571528,0.00023571,2]
[357757191,1744428632779,-2296.87571528,0.00023571,2]
[357757192,1744428632790,-2296.87571528,0.00023571,2]
[357757193,1744428632800,-2296.87571528,0.00023571,2]
[357757194,1744428632810,-2296.87571528,0.00023571,2]
[357757195,1744428632820,-2296.87571528,0.00023571,2]
[357757196,1744428632830,-2296.87571528,0.00023571,2]
[357757197,1744428632840,-2296.87571528,0.00023571,2]
[357757198,1744428632849,-2296.87571528,0.00023571,2]
[357757199,1744428632859,-2296.87571528,0.00023571,2]
[357757200,1744428632869,-2296.87571528,0.00023571,2]
[357757201,1744428632879,-2296.87571528,0.00023571,2]
[357757202,1744428632888,-2296.87571528,0.00023571,2]
[357757203,1744428632898,-2296.87571528,0.00023571,2]
[357757204,1744428632908,-2296.87571528,0.00023571,2]
[357757205,1744428632917,-2296.87571528,0.00023571,2]
[357757206,1744428632927,-2296.87571528,0.00023571,2]
[357757207,1744428632941,-2296.87571528,0.00023571,2]
[357757208,1744428632951,-2296.87571528,0.00023571,2]
[357757209,1744428632960,-2296.87571528,0.00023571,2]
[357757210,1744428632970,-2296.87571528,0.00023571,2]
[357757211,1744428632982,-2296.87571528,0.00023571,2]
[357757212,1744428632992,-2296.87571528,0.00023571,2]
[357757213,1744428633002,-2296.87571528,0.00023571,2]
[357757214,1744428633013,-2296.87571528,0.00023571,2]
[357757215,1744428633023,-2296.87571528,0.00023571,2]
[357757216,1744428633033,-2296.87571528,0.00023571,2]
[357757217,1744428633043,-151.0,0.00023572,7]
[357757218,1744428633053,-151.0,0.00023572,7]
[357757219,1744428633063,-151.870346,0.00023572,7]
[357757220,1744428633073,-151.0,0.00023572,7]
[357757221,1744428633083,-151.0,0.00023572,7]
[357757222,1744428633092,-151.0,0.00023572,7]
[357757223,1744428633102,-191.572795,0.00023572,7]
[357757224,1744428633112,-151.0,0.00023572,7]
[357757225,1744428633122,-151.0,0.00023572,7]
[357757226,1744428633133,-151.0,0.00023572,7]
[357757227,1744428633143,-151.0,0.00023572,7]
[357757228,1744428633153,-151.0,0.00023572,2]
[357757229,1744428633163,-151.0,0.00023572,2]
[357757230,1744428633173,-151.0,0.00023572,2]
[357757231,1744428633183,-151.0,0.00023572,2]
[357757232,1744428633192,-521.32075475,0.00023573,2]
[357757233,1744428633202,-502.23499032,0.00023573,2]
[357757234,1744428633212,-648.30135116,0.00023573,2]
[357757235,1744428633222,-500.0,0.00023573,2]
[357757236,1744428633232,-500.0,0.00023573,2]
[357757237,1744428633242,-500.0,0.00023573,2]
[357757238,1744428633251,-500.0,0.00023573,2]
[357757239,1744428633261,-500.0,0.00023573,2]
[357757240,1744428633272,-500.0,0.00023573,2]
[357757241,1744428633282,-500.0,0.00023573,2]
[357757242,1744428633292,-501.98613005,0.00023573,2]
[357757243,1744428633302,-500.0,0.00023573,2]
[357757244,1744428633312,-500.0,0.00023573,2]
[357757245,1744428633324,-565.19920392,0.00023573,2]
[357757246,1744428633334,-500.0,0.00023573,2]
[357757247,1744428633343,-500.0,0.00023573,2]
[357757248,1744428633354,-501.71122756,0.00023573,2]
[357757249,1744428633364,-500.0,0.00023573,2]
[357757250,1744428633374,-501.84411396,0.00023573,2]
[357757251,1744428633384,-501.16878348,0.00023573,2]
[357757252,1744428633394,-500.0,0.00023573,2]
[357757253,1744428633404,-500.0,0.00023573,2]
[357757254,1744428633414,-500.0,0.00023573,2]
[357757255,1744428633424,-151.0,0.00023573,7]
[357757256,1744428633434,-151.0,0.00023573,7]
[357757257,1744428633444,-152.210081,0.00023573,7]
[357757258,1744428633455,-151.0,0.00023573,2]
[357757259,1744428633465,-151.0,0.00023573,2]
[357757260,1744428633475,-268.41161238,0.00023586,2]
[357757261,1744428633486,-151.0,0.00023586,2]
[357757262,1744428633495,-207.4,0.00023586,2]
[357757263,1744428633518,-252.51137275,0.0002359,2]
[357757264,1744428633530,-151.0,0.00023594,7]
[357757265,1744428633541,-151.0,0.00023594,7]
[357757266,1744428633552,-151.0,0.00023594,7]
[357757267,1744428633563,-333.05139,0.00023594,7]
[357757268,1744428633574,-333.05139,0.00023594,7]
[357757269,1744428633584,-333.05139,0.00023594,7]
[357757270,1744428633594,-333.05139,0.00023594,7]
[357757271,1744428633606,-333.05139,0.00023594,7]
[357757272,1744428633616,-333.05139,0.00023594,7]
[357757273,1744428633627,-151.0,0.00023594,7]
[357757274,1744428633638,-151.0,0.00023594,7]
[357757275,1744428633648,-151.0,0.00023594,7]
[357757276,1744428633659,-151.0,0.00023594,7]
[357757277,1744428633670,-151.0,0.00023594,7]
[357757278,1744428633686,-151.0,0.00023594,7]
[357757279,1744428633698,-1078.731152,0.00023594,7]
[357757280,1744428633709,-1078.731152,0.00023594,7]
[357757281,1744428633720,-1078.731152,0.00023594,7]
[357757282,1744428633731,-1078.731152,0.00023594,7]
[357757283,1744428633743,-1078.731152,0.00023594,7]
[357757284,1744428633759,-1078.731152,0.00023594,7]
[357757285,1744428633771,-151.0,0.00023594,7]
[357757286,1744428633781,-151.0,0.00023594,7]
[357757287,1744428633792,-151.0,0.00023594,7]
[357757288,1744428633802,-312.999593,0.00023595,7]
[357757289,1744428633813,-312.999593,0.00023595,7]
[357757290,1744428633823,-312.999593,0.00023595,7]
[357757291,1744428633834,-312.999593,0.00023595,7]
[357757292,1744428634036,-312.999593,0.00023595,7]
[357757293,1744428634047,-312.999593,0.00023595,7]
[357757294,1744428634058,-151.0,0.00023595,7]
[357757295,1744428634068,-151.0,0.00023595,7]
[357757296,1744428634078,-151.0,0.00023595,7]
[357757297,1744428634088,-151.0,0.00023595,7]
[357757298,1744428634097,-151.0,0.00023595,7]
[357757299,1744428634107,-151.0,0.00023595,7]
[357757300,1744428634116,-324.235357,0.00023595,7]
[357757301,1744428634127,-324.235357,0.00023595,7]
[357757302,1744428634137,-324.235357,0.00023595,7]
[357757303,1744428634147,-290.049313,0.00023595,7]
[357757304,1744428634157,-151.0,0.00023595,7]
[357757305,1744428634167,-151.0,0.00023595,7]
[357757306,1744428634177,-155.622125,0.00023595,7]
[357757307,1744428634187,-324.235357,0.00023595,7]
[357757308,1744428634197,-324.235357,0.00023595,7]
[357757309,1744428634206,-324.235357,0.00023595,7]
[357757310,1744428634215,-151.0,0.00023595,7]
[357757311,1744428634225,-151.0,0.00023595,7]
[357757312,1744428634235,-151.0,0.00023595,7]
[357757313,1744428634244,-151.0,0.00023595,7]
[357757314,1744428634255,-151.0,0.00023595,7]
[357757315,1744428634264,-151.0,0.00023595,7]
[357757316,1744428634274,-2406.145303,0.00023595,7]
[357757317,1744428634284,-2406.145303,0.00023595,7]
[357757318,1744428634294,-2406.145303,0.00023595,7]
[357757319,1744428634303,-2406.145303,0.00023595,7]
[357757320,1744428634312,-2406.145303,0.00023595,7]
[357757321,1744428634322,-2406.145303,0.00023595,7]
[357757322,1744428634332,-151.0,0.00023595,7]
[357757323,1744428634341,-151.0,0.00023596,7]
[357757324,1744428634352,-151.0,0.00023596,7]
[357757325,1744428634361,-151.0,0.00023596,7]
[357757326,1744428634371,-221.11832,0.00023596,7]
[357757327,1744428634381,-221.11832,0.00023596,7]
[357757328,1744428634390,-221.11832,0.00023596,7]
[357757329,1744428634400,-221.11832,0.00023596,7]
[357757330,1744428634410,-221.11832,0.00023596,7]
[357757331,1744428634420,-221.11832,0.00023596,7]
[357757332,1744428634429,-943.591393,0.00023596,7]
[357757333,1744428634439,-943.591393,0.00023596,7]
[357757334,1744428634449,-943.591393,0.00023596,7]
[357757335,1744428634459,-943.591393,0.00023596,7]
[357757336,1744428634469,-943.591393,0.00023596,7]
[357757337,1744428634480,-943.591393,0.00023596,7]
[357757338,1744428634490,-151.0,0.00023596,7]
[357757339,1744428634500,-151.0,0.00023596,7]
[357757340,1744428634511,-151.0,0.00023596,7]
[357757341,1744428634521,-151.0,0.00023596,7]
[357757342,1744428634532,-151.0,0.00023596,2]
[357757343,1744428634542,-151.0,0.00023596,2]
[357757344,1744428634551,-151.0,0.00023597,7]
[357757345,1744428634561,-151.0,0.00023597,7]
[357757346,1744428634571,-151.0,0.00023597,7]
[357757347,1744428634580,-151.0,0.00023597,7]
[357757348,1744428634590,-151.0,0.00023597,7]
[357757349,1744428634600,-151.0,0.00023597,7]
[357757350,1744428634609,-1455.999887,0.00023597,7]
[357757351,1744428634619,-1455.999887,0.00023597,7]
[357757352,1744428634628,-1455.999887,0.00023597,7]
[357757353,1744428634638,-1455.999887,0.00023597,7]
[357757354,1744428634647,-1455.999887,0.00023597,7]
[357757355,1744428634657,-1455.999887,0.00023597,7]
[357757356,1744428634666,-1238.221429,0.00023597,7]
[357757357,1744428634676,-1238.221429,0.00023597,7]
[357757358,1744428634686,-1238.221429,0.00023597,7]
[357757359,1744428634695,-1238.221429,0.00023597,7]
[357757360,1744428634705,-1238.221429,0.00023597,7]
[357757361,1744428634715,-1238.221429,0.00023597,7]
[357757362,1744428634725,-156.081861,0.00023597,7]
[357757363,1744428634735,-156.081861,0.00023597,7]
[357757364,1744428634745,-156.081861,0.00023597,7]
[357757365,1744428634754,-156.081861,0.00023597,7]
[357757366,1744428634764,-156.081861,0.00023597,7]
[357757367,1744428634774,-156.081861,0.00023597,7]
[357757368,1744428634784,-312.999593,0.00023597,7]
[357757369,1744428634793,-312.999593,0.00023597,7]
[357757370,1744428634803,-151.0,0.00023597,7]
[357757371,1744428634813,-151.0,0.00023597,7]
[357757372,1744428634823,-151.0,0.00023597,7]
[357757373,1744428634833,-151.0,0.00023597,7]
[357757374,1744428634843,-151.0,0.00023597,7]
[357757375,1744428634852,-324.235357,0.00023597,7]
[357757376,1744428634862,-324.235357,0.00023597,7]
[357757377,1744428634871,-151.0,0.00023597,7]
[357757378,1744428634881,-151.0,0.00023597,7]
[357757379,1744428634891,-2406.145303,0.00023597,7]
[357757380,1744428634900,-2406.145303,0.00023597,7]
[357757381,1744428634910,-151.0,0.00023597,7]
[357757382,1744428634920,-151.0,0.00023597,7]
[357757383,1744428634929,-333.05139,0.00023597,7]
[357757384,1744428634947,-333.05139,0.00023597,7]
[357757385,1744428634964,-155.043777,0.00023597,7]
[357757386,1744428634974,-151.0,0.00023597,7]
[357757387,1744428634984,-151.0,0.00023597,7]
[357757388,1744428634993,-1078.731152,0.00023597,7]
[357757389,1744428635003,-1078.731152,0.00023597,7]
[357757390,1744428635012,-239.690553,0.00023597,7]
[357757391,1744428635022,-151.0,0.00023597,2]
[357757392,1744428635032,-151.0,0.00023597,2]
[357757393,1744428635042,-627.286411,0.00023598,7]
[357757394,1744428635051,-627.286411,0.00023598,7]
[357757395,1744428635061,-627.286411,0.00023598,7]
[357757396,1744428635070,-627.286411,0.00023598,7]
[357757397,1744428635079,-211.322438,0.00023598,7]
[357757398,1744428635089,-211.322438,0.00023598,7]
[357757399,1744428635099,-211.322438,0.00023598,7]
[357757400,1744428635108,-211.322438,0.00023598,7]
[357757401,1744428635118,-151.0,0.00023598,7]
[357757402,1744428635128,-151.0,0.00023598,7]
[357757403,1744428635138,-151.0,0.00023598,7]
[357757404,1744428635147,-212.898201,0.00023598,7]
[357757405,1744428635157,-151.0,0.00023598,7]
[357757406,1744428635166,-151.0,0.00023598,7]
[357757407,1744428635177,-151.0,0.00023598,7]
[357757408,1744428635187,-151.0,0.00023598,7]
[357757409,1744428635198,-151.0,0.00023598,7]
[357757410,1744428635211,-153.234461,0.00023598,7]
[357757411,1744428635221,-158.664109,0.00023599,7]
[357757412,1744428635231,-151.0,0.00023599,7]
[357757413,1744428635242,-1000.0,0.00023599,2]
[357757414,1744428635252,-1000.0,0.00023599,2]
[357757415,1744428635262,-1000.0,0.00023599,2]
[357757416,1744428635273,-1000.0,0.00023599,2]
[357757417,1744428635283,-1000.0,0.00023599,2]
[357757418,1744428635292,-1000.0,0.00023599,2]
[357757419,1744428635302,-1000.0,0.00023599,2]
[357757420,1744428635313,-1000.0,0.00023599,2]
[357757421,1744428635323,-1000.0,0.00023599,2]